fUST/lending_fUST_20240802
["ID","MTS","AMOUNT","RATE_DAILY","PERIOD"]
[333854193,1722567040735,-13833.59128015,0.00013689,2]
[333854194,1722567040743,-1093.6,0.0001369,2]
[333854196,1722567040753,-1127.44,0.00013697,2]
[333854198,1722567040763,-1127.44,0.00013697,2]
[333854200,1722567040772,-1127.44,0.00013697,2]
[333854202,1722567040782,-1127.44,0.00013697,2]
[333854204,1722567040791,-1127.44,0.00013697,2]
[333854206,1722567040800,-1127.44,0.00013697,2]
[333854207,1722567040809,-1127.44,0.00013697,2]
[333854209,1722567040819,-14180.27965242,0.00013698,5]
[333854210,1722567040829,-3217.35607831,0.00013698,5]
[333854212,1722567040838,-500.0,0.00013698,2]
[333854214,1722567040847,-500.0,0.00013698,2]
[333854216,1722567040856,-503.78865461,0.00013698,2]
[333854217,1722567040866,-226.66899473,0.00013698,2]
[333854219,1722567040876,-502.01764721,0.00013698,2]
[333854220,1722567040888,-500.0,0.00013698,2]
[333854221,1722567040897,-250.049559,0.00013698,2]
[333854222,1722567040907,-500.0,0.00013698,2]
[333854223,1722567040916,-501.7351523,0.00013698,2]
[333854224,1722567040926,-151.140364,0.00013698,2]
[333854225,1722567040936,-500.0,0.00013698,2]
[333854226,1722567040945,-503.4633429,0.00013698,2]
[333854227,1722567040954,-500.0,0.00013698,2]
[333854228,1722567040965,-505.35266872,0.00013698,2]
[333854229,1722567040975,-500.0,0.00013698,2]
[333854230,1722567040984,-500.0,0.00013698,2]
[333854231,1722567040994,-462.01777427,0.00013698,2]
[333854232,1722567041004,-500.0,0.00013698,2]
[333854233,1722567041013,-375.49306859,0.00013698,2]
[333854234,1722567041022,-500.0,0.00013698,2]
[333854235,1722567041031,-500.0,0.00013698,2]
[333854236,1722567041040,-500.0,0.00013698,2]
[333854237,1722567041049,-500.0,0.00013698,2]
[333854238,1722567041059,-307.2259258,0.00013698,2]
[333854239,1722567041073,-192.7740742,0.00013698,2]
[333854240,1722567041082,-500.0,0.00013698,2]
[333854241,1722567041092,-500.0,0.00013698,2]
[333854242,1722567041102,-500.0,0.00013698,2]
[333854243,1722567041113,-500.0,0.00013698,2]
[333854244,1722567041122,-399.2533575,0.00013698,2]
[333854245,1722567041132,-500.0,0.00013698,2]
[333854246,1722567041141,-291.81032934,0.00013698,2]
[333854247,1722567041151,-500.0,0.00013698,2]
[333854248,1722567041162,-48.77351514,0.00013698,2]
[333854263,1722567043389,-250.000025,0.00013698,2]
[333854264,1722567043409,-201.22645986,0.00013698,2]
[333854265,1722567043425,-500.0,0.00013698,2]
[333854266,1722567043441,-113.34854014,0.00013698,2]
[333854267,1722567043679,-426.13314507,0.00013698,2]
[333854268,1722567043693,-500.0,0.00013698,2]
[333854269,1722567043708,-500.0,0.00013698,2]
[333854271,1722567043724,-500.0,0.00013698,2]
[333854272,1722567043738,-500.0,0.00013698,2]
[333854273,1722567043750,-500.0,0.00013698,2]
[333854274,1722567043763,-500.0,0.00013698,2]
[333854275,1722567043776,-500.0,0.00013698,2]
[333854276,1722567043792,-500.0,0.00013698,2]
[333854277,1722567043806,-500.0,0.00013698,2]
[333854279,1722567043822,-500.0,0.00013698,2]
[333854280,1722567043837,-500.0,0.00013698,2]
[333854281,1722567043850,-500.0,0.00013698,2]
[333854282,1722567043860,-581.70811394,0.00013698,2]
[333854283,1722567043872,-538.08,0.00013698,2]
[333854284,1722567043890,-500.0,0.00013698,2]
[333854285,1722567043904,-650.0,0.00013698,2]
[333854286,1722567043916,-500.0,0.00013698,2]
[333854287,1722567043932,-500.0,0.00013698,2]
[333854288,1722567043945,-500.0,0.00013698,2]
[333854289,1722567043958,-500.0,0.00013698,2]
[333854290,1722567043971,-500.0,0.00013698,2]
[333854291,1722567043983,-500.0,0.00013698,2]
[333854292,1722567043997,-500.0,0.00013698,2]
[333854293,1722567044010,-500.0,0.00013698,2]
[333854294,1722567044022,-500.0,0.00013698,2]
[333854295,1722567044034,-500.0,0.00013698,2]
[333854296,1722567044048,-500.0,0.00013698,2]
[333854297,1722567044059,-300.0,0.00013698,2]
[333854298,1722567044073,-500.0,0.00013698,2]
[333854299,1722567044086,-500.0,0.00013698,2]
[333854300,1722567044098,-504.58618475,0.00013698,2]
[333854301,1722567044111,-500.0,0.00013698,2]
[333854302,1722567044124,-500.0,0.00013698,2]
[333854303,1722567044137,-500.0,0.00013698,2]
[333854304,1722567044150,-151.0,0.00013698,2]
[333854305,1722567044162,-503.14008493,0.00013698,2]
[333854306,1722567044174,-500.0,0.00013698,2]
[333854307,1722567044187,-500.0,0.00013698,2]
[333854308,1722567044198,-157.2428592,0.00013698,2]
[333854309,1722567044211,-500.0,0.00013698,2]
[333854310,1722567044224,-500.0,0.00013698,2]
[333854311,1722567044236,-500.0,0.00013698,2]
[333854312,1722567044249,-500.0,0.00013698,2]
[333854313,1722567044263,-500.0,0.00013698,2]
[333854314,1722567044276,-346.28686281,0.00013698,2]
[333854315,1722567044288,-500.0,0.00013698,2]
[333854316,1722567044301,-500.0,0.00013698,2]
[333854317,1722567044313,-500.0,0.00013698,2]
[333854318,1722567044326,-500.0,0.00013698,2]
[333854319,1722567044337,-500.0,0.00013698,2]
[333854320,1722567044349,-500.0,0.00013698,2]
[333854321,1722567044362,-151.0,0.00013698,2]
[333854322,1722567044374,-151.0,0.00013698,2]
[333854323,1722567044386,-151.0,0.00013698,2]
[333854324,1722567044399,-151.0,0.00013698,2]
[333854325,1722567044411,-502.33018296,0.00013698,2]
[333854326,1722567044424,-500.0,0.00013698,2]
[333854327,1722567044436,-500.0,0.00013698,2]
[333854328,1722567044449,-214.11341324,0.00013698,2]
[333854329,1722567044462,-500.0,0.00013698,2]
[333854330,1722567044476,-500.0,0.00013698,2]
[333854331,1722567044488,-500.0,0.00013698,2]
[333854332,1722567044500,-500.0,0.00013698,2]
[333854333,1722567044512,-500.0,0.00013698,2]
[333854334,1722567044524,-500.0,0.00013698,2]
[333854335,1722567044647,-151.237157,0.00013698,2]
[333854336,1722567044662,-500.0,0.00013698,2]
[333854337,1722567044673,-151.0,0.00013698,2]
[333854338,1722567044683,-500.0,0.00013698,2]
[333854339,1722567044694,-500.0,0.00013698,2]
[333854340,1722567044705,-402.74716185,0.00013698,2]
[333854341,1722567044715,-500.0,0.00013698,2]
[333854342,1722567044726,-500.0,0.00013698,2]
[333854343,1722567044736,-507.87189535,0.00013698,2]
[333854344,1722567044747,-500.0,0.00013698,2]
[333854345,1722567044757,-500.0,0.00013698,2]
[333854346,1722567044767,-504.03657955,0.00013698,2]
[333854347,1722567044776,-500.0,0.00013698,2]
[333854348,1722567044786,-500.0,0.00013698,2]
[333854349,1722567044797,-500.0,0.00013698,2]
[333854350,1722567044808,-630.88,0.00013698,2]
[333854351,1722567044818,-500.0,0.00013698,2]
[333854352,1722567044827,-500.0,0.00013698,2]
[333854353,1722567044837,-500.0,0.00013698,2]
[333854354,1722567044846,-500.0,0.00013698,2]
[333854355,1722567044855,-500.0,0.00013698,2]
[333854356,1722567044864,-614.98639841,0.00013698,2]
[333854357,1722567044873,-642.89,0.00013698,2]
[333854358,1722567044887,-500.0,0.00013698,2]
[333854359,1722567044897,-500.0,0.00013698,2]
[333854360,1722567044906,-500.0,0.00013698,2]
[333854361,1722567044915,-500.0,0.00013698,2]
[333854362,1722567044925,-504.02557304,0.00013698,2]
[333854363,1722567044934,-500.0,0.00013698,2]
[333854364,1722567044944,-504.96217525,0.00013698,2]
[333854365,1722567044954,-500.0,0.00013698,2]
[333854366,1722567044965,-500.0,0.00013698,2]
[333854367,1722567044978,-500.0,0.00013698,2]
[333854368,1722567044987,-503.04903687,0.00013698,2]
[333854369,1722567044996,-502.77425837,0.00013698,2]
[333854370,1722567045005,-666.01,0.00013698,2]
[333854371,1722567045015,-500.0,0.00013698,2]
[333854372,1722567045024,-151.0,0.00013698,2]
[333854373,1722567045033,-151.0,0.00013698,2]
[333854374,1722567045043,-500.0,0.00013698,2]
[333854375,1722567045053,-151.0,0.00013698,2]
[333854376,1722567045062,-500.0,0.00013698,2]
[333854377,1722567045072,-518.75,0.00013698,2]
[333854378,1722567045082,-151.0,0.00013698,2]
[333854379,1722567045092,-500.0,0.00013698,2]
[333854380,1722567045104,-500.0,0.00013698,2]
[333854381,1722567045114,-151.0,0.00013698,2]
[333854382,1722567045123,-500.0,0.00013698,2]
[333854383,1722567045133,-238.276354,0.00013698,2]
[333854384,1722567045143,-500.0,0.00013698,2]
[333854385,1722567045153,-500.0,0.00013698,2]
[333854386,1722567045162,-500.0,0.00013698,2]
[333854387,1722567045172,-174.89130693,0.00013698,2]
[333854388,1722567045182,-500.0,0.00013698,2]
[333854389,1722567045192,-500.0,0.00013698,2]
[333854390,1722567045201,-500.0,0.00013698,2]
[333854391,1722567045211,-500.0,0.00013698,2]
[333854392,1722567045226,-511.57189261,0.00013698,2]
[333854393,1722567045235,-151.0,0.00013698,2]
[333854394,1722567045245,-151.0,0.00013698,2]
[333854395,1722567045255,-151.0,0.00013698,2]
[333854396,1722567045266,-151.0,0.00013698,2]
[333854397,1722567045276,-500.0,0.00013698,2]
[333854398,1722567045286,-151.0,0.00013698,2]
[333854399,1722567045295,-500.0,0.00013698,2]
[333854400,1722567045305,-500.0,0.00013698,2]
[333854401,1722567045314,-500.0,0.00013698,2]
[333854402,1722567045323,-500.0,0.00013698,2]
[333854403,1722567045333,-500.0,0.00013698,2]
[333854404,1722567045342,-500.0,0.00013698,2]
[333854405,1722567045352,-500.0,0.00013698,2]
[333854406,1722567045361,-503.4425506,0.00013698,2]
[333854407,1722567045371,-500.0,0.00013698,2]
[333854408,1722567045380,-151.0,0.00013698,2]
[333854409,1722567045390,-151.0,0.00013698,2]
[333854410,1722567045399,-500.0,0.00013698,2]
[333854411,1722567045409,-151.0,0.00013698,2]
[333854412,1722567045418,-132.83474094,0.00013698,2]
[333854413,1722567045590,-18.16525906,0.00013698,2]
[333854414,1722567045600,-151.0,0.00013698,2]
[333854415,1722567045610,-151.0,0.00013698,2]
[333854416,1722567045621,-151.0,0.00013698,2]
[333854417,1722567045630,-151.0,0.00013698,2]
[333854418,1722567045640,-151.0,0.00013698,2]
[333854419,1722567045650,-151.0,0.00013698,2]
[333854420,1722567045660,-151.0,0.00013698,2]
[333854421,1722567045670,-500.0,0.00013698,2]
[333854422,1722567045680,-500.0,0.00013698,2]
[333854423,1722567045691,-151.0,0.00013698,2]
[333854424,1722567045702,-500.0,0.00013698,2]
[333854425,1722567045713,-504.62413079,0.00013698,2]
[333854426,1722567045726,-197.44963897,0.00013698,2]
[333854526,1722567046679,-306.21878943,0.00013698,2]
[333854527,1722567046688,-500.0,0.00013698,2]
[333854530,1722567046698,-500.0,0.00013698,2]
[333854533,1722567046707,-500.0,0.00013698,2]
[333854535,1722567046720,-151.0,0.00013698,2]
[333854537,1722567046730,-151.0,0.00013698,2]
[333854539,1722567046738,-457.52799357,0.00013698,2]
[333854551,1722567119376,154.95786257,9.999e-05,2]
[333854555,1722567500986,8155.80276296,9.999e-05,2]
[333854556,1722567501669,155.09334679,9.999e-05,2]
[333854557,1722567502268,165.57413247,9.999e-05,2]
[333854558,1722567518641,199.7835734,0.00027,120]
[333854559,1722567539279,1661.8131014,0.00027,120]
[333854801,1722568238739,-467.01932834,0.00012119,2]
[333854802,1722568238749,-160.836496,0.00012986,2]
[333854803,1722568238759,-367.80729453,0.00013571,2]
[333854804,1722568238768,-2880.04339917,0.00013589,2]
[333854805,1722568238778,-198.02932116,0.00013598,2]
[333854806,1722568238788,-198.02932116,0.00013666,2]
[333854807,1722568238798,-657.67,0.00013687,2]
[333854808,1722568238807,-657.67,0.00013688,2]
[333854809,1722568238817,-25524.67672384,0.00013688,2]
[333854810,1722568238829,-5768.03357248,0.00013688,2]
[333854850,1722568243762,-691.20706109,0.00013688,2]
[333854891,1722568246811,-25876.88,0.00013688,2]
[333854900,1722568587488,-161.006074,0.00012986,2]
[333854901,1722568587517,-2619.57328346,0.00013589,2]
[333854902,1722568587547,-644.53,0.00013687,2]
[333854903,1722568587574,-48372.5063485,0.00013688,2]
[333854904,1722568587600,-9674.5012697,0.00013689,2]
[333854905,1722568587626,-1410.0,0.00013693,2]
[333854906,1722568587650,-150.55,0.00013693,2]
[333854907,1722568587677,-644.53,0.00013696,2]
[333854908,1722568587708,-500.0,0.00013698,2]
[333854909,1722568587733,-500.0,0.00013698,2]
[333854910,1722568587758,-500.0,0.00013698,2]
[333854911,1722568587782,-500.0,0.00013698,2]
[333854912,1722568587808,-500.0,0.00013698,2]
[333854913,1722568587833,-476.21884592,0.00013698,2]
[333854914,1722568587857,-151.0,0.00013698,2]
[333854915,1722568587882,-151.0,0.00013698,2]
[333854916,1722568587908,-151.0,0.00013698,2]
[333854917,1722568587932,-151.0,0.00013698,2]
[333854918,1722568587960,-151.0,0.00013698,2]
[333854919,1722568587985,-152.677897,0.00013698,2]
[333854920,1722568588010,-160.025423,0.00013698,2]
[333854921,1722568588036,-500.0,0.00013698,2]
[333854922,1722568588061,-685.38,0.00013698,2]
[333854923,1722568588086,-500.0,0.00013698,2]
[333854924,1722568588250,-500.0,0.00013698,2]
[333854925,1722568588277,-500.0,0.00013698,2]
[333854926,1722568588303,-500.0,0.00013698,2]
[333854927,1722568588336,-500.0,0.00013698,2]
[333854928,1722568588362,-500.0,0.00013698,2]
[333854929,1722568588386,-440.88700644,0.00013698,2]
[333854930,1722568588412,-502.74565143,0.00013698,2]
[333854931,1722568588438,-500.0,0.00013698,2]
[333854932,1722568588463,-500.0,0.00013698,2]
[333854933,1722568588487,-565.27671087,0.00013698,2]
[333854934,1722568588509,-503.50111287,0.00013698,2]
[333854935,1722568588533,-504.49005154,0.00013698,2]
[333854936,1722568588558,-500.0,0.00013698,2]
[333854937,1722568588582,-510.21398286,0.00013698,2]
[333854938,1722568588606,-503.33252529,0.00013698,2]
[333854939,1722568588630,-500.0,0.00013698,2]
[333854940,1722568588655,-576.54565609,0.00013698,2]
[333854941,1722568588679,-502.42946336,0.00013698,2]
[333854942,1722568588705,-151.0,0.00013698,2]
[333854943,1722568588728,-397.28660429,0.00013698,2]
[333854944,1722568588754,-151.0,0.00013698,2]
[333854945,1722568588778,-151.0,0.00013698,2]
[333854946,1722568588803,-151.0,0.00013698,2]
[333854947,1722568588828,-500.0,0.00013698,2]
[333854948,1722568588854,-498.18044454,0.00013698,2]
[333854949,1722568588883,-151.0,0.00013698,2]
[333854950,1722568588910,-151.0,0.00013698,2]
[333854951,1722568588939,-151.0,0.00013698,2]
[333854952,1722568588963,-151.0,0.00013698,2]
[333854953,1722568588987,-501.27093056,0.00013698,2]
[333854954,1722568589011,-500.0,0.00013698,2]
[333854955,1722568589036,-504.10204132,0.00013698,2]
[333854956,1722568589060,-500.0,0.00013698,2]
[333854957,1722568589086,-500.0,0.00013698,2]
[333854958,1722568589109,-503.39891753,0.00013698,2]
[333854959,1722568589133,-151.0,0.00013698,2]
[333854960,1722568589156,-582.00549918,0.00013698,2]
[333854961,1722568589180,-500.0,0.00013698,2]
[333854962,1722568589206,-500.0,0.00013698,2]
[333854963,1722568589229,-500.0,0.00013698,2]
[333854964,1722568589254,-500.0,0.00013698,2]
[333854965,1722568589278,-500.0,0.00013698,2]
[333854966,1722568589302,-502.26911877,0.00013698,2]
[333854967,1722568589325,-151.0,0.00013698,2]
[333854968,1722568589357,-151.0,0.00013698,2]
[333854969,1722568589383,-500.0,0.00013698,2]
[333854970,1722568589406,-503.9939455,0.00013698,2]
[333854971,1722568589433,-633.56,0.00013698,2]
[333854972,1722568589457,-503.82328563,0.00013698,2]
[333854973,1722568589481,-500.0,0.00013698,2]
[333854974,1722568589505,-507.11244392,0.00013698,2]
[333854975,1722568589528,-500.0,0.00013698,2]
[333854976,1722568589553,-500.0,0.00013698,2]
[333854977,1722568589576,-486.242872,0.00013698,2]
[333854978,1722568589601,-486.242872,0.00013698,2]
[333854979,1722568589625,-486.242872,0.00013698,2]
[333854980,1722568589649,-486.242872,0.00013698,2]
[333854981,1722568589672,-500.0,0.00013698,2]
[333854982,1722568589706,-504.18263956,0.00013698,2]
[333854983,1722568589737,-500.0,0.00013698,2]
[333854984,1722568589762,-151.0,0.00013698,2]
[333854985,1722568589786,-151.0,0.00013698,2]
[333854986,1722568589811,-151.0,0.00013698,2]
[333854987,1722568589836,-151.0,0.00013698,2]
[333854988,1722568589861,-151.0,0.00013698,2]
[333854989,1722568589885,-151.0,0.00013698,2]
[333854990,1722568589910,-269.139301,0.00013698,2]
[333854991,1722568589934,-501.40869224,0.00013698,2]
[333854992,1722568589961,-500.0,0.00013698,2]
[333854993,1722568589984,-502.8302275,0.00013698,2]
[333854994,1722568590008,-500.0,0.00013698,2]
[333854995,1722568590032,-500.0,0.00013698,2]
[333854996,1722568590068,-151.0,0.00013698,2]
[333854997,1722568590099,-151.0,0.00013698,2]
[333854998,1722568590124,-151.0,0.00013698,2]
[333854999,1722568590150,-151.0,0.00013698,2]
[333855000,1722568590176,-500.0,0.00013698,2]
[333855001,1722568590203,-151.0,0.00013698,2]
[333855002,1722568590232,-151.0,0.00013698,2]
[333855003,1722568590258,-151.0,0.00013698,2]
[333855004,1722568590284,-151.0,0.00013698,2]
[333855005,1722568590308,-500.0,0.00013698,2]
[333855006,1722568590333,-500.0,0.00013698,2]
[333855007,1722568590360,-500.0,0.00013698,2]
[333855008,1722568590508,-500.0,0.00013698,2]
[333855009,1722568590532,-500.0,0.00013698,2]
[333855010,1722568590555,-501.41284963,0.00013698,2]
[333855011,1722568590579,-500.0,0.00013698,2]
[333855012,1722568590603,-500.0,0.00013698,2]
[333855013,1722568590627,-500.0,0.00013698,2]
[333855014,1722568590652,-500.0,0.00013698,2]
[333855015,1722568590677,-500.0,0.00013698,2]
[333855016,1722568590702,-500.0,0.00013698,2]
[333855017,1722568590725,-508.89312654,0.00013698,2]
[333855018,1722568590749,-500.0,0.00013698,2]
[333855019,1722568590772,-500.0,0.00013698,2]
[333855020,1722568590796,-509.73182935,0.00013698,2]
[333855021,1722568590819,-151.0,0.00013698,2]
[333855022,1722568590841,-500.0,0.00013698,2]
[333855023,1722568590864,-500.0,0.00013698,2]
[333855024,1722568590888,-560.12365249,0.00013698,2]
[333855025,1722568590911,-502.86989719,0.00013698,2]
[333855026,1722568590934,-500.0,0.00013698,2]
[333855027,1722568590958,-500.0,0.00013698,2]
[333855028,1722568590981,-500.0,0.00013698,2]
[333855029,1722568591004,-500.0,0.00013698,2]
[333855030,1722568591027,-500.0,0.00013698,2]
[333855031,1722568591052,-500.0,0.00013698,2]
[333855032,1722568591076,-500.0,0.00013698,2]
[333855033,1722568591100,-500.0,0.00013698,2]
[333855034,1722568591123,-500.0,0.00013698,2]
[333855035,1722568591146,-530.28373956,0.00013698,2]
[333855036,1722568591171,-524.5022313,0.00013698,2]
[333855037,1722568591200,-500.0,0.00013698,2]
[333855038,1722568591224,-527.91700429,0.00013698,2]
[333855039,1722568591250,-500.0,0.00013698,2]
[333855040,1722568591274,-500.0,0.00013698,2]
[333855041,1722568591296,-500.0,0.00013698,2]
[333855042,1722568591320,-500.0,0.00013698,2]
[333855043,1722568591347,-500.0,0.00013698,2]
[333855044,1722568591370,-538.91239335,0.00013698,2]
[333855045,1722568591396,-500.0,0.00013698,2]
[333855046,1722568591421,-500.0,0.00013698,2]
[333855047,1722568591448,-500.0,0.00013698,2]
[333855048,1722568591472,-515.66,0.00013698,2]
[333855049,1722568591495,-500.0,0.00013698,2]
[333855050,1722568591518,-500.0,0.00013698,2]
[333855051,1722568591541,-500.0,0.00013698,2]
[333855052,1722568591565,-500.0,0.00013698,2]
[333855053,1722568591588,-151.0,0.00013698,2]
[333855054,1722568591612,-151.0,0.00013698,2]
[333855055,1722568591636,-151.0,0.00013698,2]
[333855056,1722568591660,-500.0,0.00013698,2]
[333855057,1722568591684,-151.0,0.00013698,2]
[333855058,1722568591711,-258.934336,0.00013698,2]
[333855059,1722568591736,-500.0,0.00013698,2]
[333855060,1722568591760,-612.87715927,0.00013698,2]
[333855061,1722568591784,-500.0,0.00013698,2]
[333855062,1722568591809,-500.0,0.00013698,2]
[333855063,1722568591832,-500.0,0.00013698,2]
[333855064,1722568591855,-500.0,0.00013698,2]
[333855065,1722568591878,-500.0,0.00013698,2]
[333855066,1722568591902,-500.0,0.00013698,2]
[333855067,1722568591925,-557.243738,0.00013698,2]
[333855068,1722568591952,-500.0,0.00013698,2]
[333855069,1722568591977,-151.0,0.00013698,2]
[333855070,1722568592002,-151.0,0.00013698,2]
[333855071,1722568592026,-500.0,0.00013698,2]
[333855072,1722568592049,-151.0,0.00013698,2]
[333855073,1722568592073,-152.487019,0.00013698,2]
[333855074,1722568592097,-500.0,0.00013698,2]
[333855075,1722568592122,-513.73437803,0.00013698,2]
[333855076,1722568592146,-896.94,0.00013698,2]
[333855077,1722568592171,-500.0,0.00013698,2]
[333855078,1722568592198,-500.0,0.00013698,2]
[333855079,1722568592221,-500.0,0.00013698,2]
[333855080,1722568592245,-500.0,0.00013698,2]
[333855081,1722568592270,-483.28126265,0.00013698,2]
[333855082,1722568592294,-500.97111763,0.00013698,2]
[333855083,1722568592319,-151.0,0.00013698,2]
[333855084,1722568592347,-151.0,0.00013698,2]
[333855085,1722568592375,-500.0,0.00013698,2]
[333855086,1722568592399,-242.48891108,0.00013698,2]
[333855087,1722568592425,-500.0,0.00013698,2]
[333855088,1722568592544,-500.0,0.00013698,2]
[333855089,1722568592569,-500.0,0.00013698,2]
[333855090,1722568592594,-714.98,0.00013698,2]
[333855091,1722568592619,-500.0,0.00013698,2]
[333855092,1722568592645,-500.0,0.00013698,2]
[333855093,1722568592670,-500.0,0.00013698,2]
[333855094,1722568592695,-500.0,0.00013698,2]
[333855095,1722568592720,-500.0,0.00013698,2]
[333855096,1722568592747,-500.0,0.00013698,2]
[333855097,1722568592772,-487.10186021,0.00013698,2]
[333855098,1722568592795,-500.0,0.00013698,2]
[333855099,1722568592824,-500.0,0.00013698,2]
[333855100,1722568592847,-503.73130289,0.00013698,2]
[333855101,1722568592875,-500.0,0.00013698,2]
[333855102,1722568592904,-500.0,0.00013698,2]
[333855103,1722568592928,-517.13208854,0.00013698,2]
[333855104,1722568592954,-500.0,0.00013698,2]
[333855105,1722568592981,-500.0,0.00013698,2]
[333855106,1722568593008,-500.0,0.00013698,2]
[333855107,1722568593032,-505.54505817,0.00013698,2]
[333855108,1722568593057,-500.0,0.00013698,2]
[333855109,1722568593083,-171.78816296,0.00013698,2]
[333855152,1722569438786,-161.006074,0.00012986,2]
[333855153,1722569438800,-367.80729453,0.00013544,2]
[333855154,1722569438810,-2292.12662301,0.00013594,2]
[333855155,1722569438820,-198.02932116,0.00013598,2]
[333855156,1722569438829,-3967.26907109,0.00013688,2]
[333855157,1722569438842,-23121.33448411,0.00013688,2]
[333855158,1722569438851,-6772.15088879,0.00013689,2]
[333855159,1722569438861,-1410.0,0.00013694,2]
[333855160,1722569438871,-590.82,0.00013697,2]
[333855161,1722569438880,-142.81923253,0.00013697,2]
[333855162,1722569438989,-448.00076747,0.00013697,2]
[333855163,1722569438998,-590.82,0.00013697,2]
[333855164,1722569439008,-590.82,0.00013697,2]
[333855165,1722569439017,-590.82,0.00013697,2]
[333855166,1722569439027,-590.82,0.00013697,2]
[333855167,1722569439036,-1608.67803916,0.00013698,5]
[333855168,1722569439045,-151.28181,0.00013698,2]
[333855169,1722569439054,-500.0,0.00013698,2]
[333855170,1722569439064,-151.0,0.00013698,2]
[333855171,1722569439074,-262.563635,0.00013698,2]
[333855172,1722569439083,-151.0,0.00013698,2]
[333855173,1722569439092,-197.002828,0.00013698,2]
[333855174,1722569439101,-500.0,0.00013698,2]
[333855175,1722569439111,-247.59878506,0.00013698,2]
[333855176,1722569439120,-617.47430376,0.00013698,2]
[333855177,1722569439129,-507.39101136,0.00013698,2]
[333855178,1722569439138,-502.18289792,0.00013698,2]
[333855179,1722569439148,-256.3836567,0.00013698,2]
[333855180,1722569439158,-500.0,0.00013698,2]
[333855181,1722569439168,-500.0,0.00013698,2]
[333855182,1722569439178,-501.76303475,0.00013698,2]
[333855183,1722569439187,-151.0,0.00013698,2]
[333855184,1722569439196,-176.201326,0.00013698,2]
[333855185,1722569439206,-500.0,0.00013698,2]
[333855186,1722569439215,-501.52279869,0.00013698,2]
[333855187,1722569439225,-500.0,0.00013698,2]
[333855188,1722569439235,-500.93685737,0.00013698,2]
[333855189,1722569439245,-500.0,0.00013698,2]
[333855190,1722569439254,-500.0,0.00013698,2]
[333855191,1722569439264,-500.0,0.00013698,2]
[333855192,1722569439273,-500.0,0.00013698,2]
[333855193,1722569439283,-500.0,0.00013698,2]
[333855194,1722569439292,-243.23330565,0.00013698,2]
[333855195,1722569439301,-504.39779705,0.00013698,2]
[333855196,1722569439311,-91.96161595,0.00013698,2]
[333855349,1722569447171,-408.03838405,0.00013698,2]
[333855350,1722569447180,-409.7077145,0.00013698,2]
[333855351,1722569447190,-500.0,0.00013698,2]
[333855352,1722569447200,-500.0,0.00013698,2]
[333855353,1722569447209,-509.1937834,0.00013698,2]
[333855354,1722569447219,-171.35924452,0.00013698,2]
[333855355,1722569447229,-500.0,0.00013698,2]
[333855356,1722569447239,-500.0,0.00013698,2]
[333855357,1722569447249,-500.0,0.00013698,2]
[333855358,1722569447258,-500.0,0.00013698,2]
[333855359,1722569447267,-500.0,0.00013698,2]
[333855360,1722569447277,-156.13047066,0.00013698,2]
[333855361,1722569447287,-500.0,0.00013698,2]